[Event "*** SCC Grand Prix: Titled Tuesday Blitz"]
[Site "Chess.com"]
[Date "2020.06.23"]
[Round "6"]
[White "Hasangatin_Ramil"]
[Black "StockholmMissile"]
[Result "1/2-1/2"]
[WhiteElo "2603"]
[BlackElo "2437"]
[TimeControl "180+1"]
[EndTime "11:08:11 PDT"]
[Termination "Game drawn by repetition"]

1. e4 {[%clk 0:03:00.9]} 1... e5 {[%clk 0:02:58.4]} 2. Nf3 {[%clk 0:03:00.7]}
2... Nc6 {[%clk 0:02:57.9]} 3. Bb5 {[%clk 0:03:01.1]} 3... a6 {[%clk 0:02:57.7]}
4. Ba4 {[%clk 0:03:01.4]} 4... Nf6 {[%clk 0:02:57.6]} 5. Bxc6 {[%clk 0:03:01.2]}
5... dxc6 {[%clk 0:02:54.7]} 6. d3 {[%clk 0:03:01.4]} 6... Nd7 {[%clk
0:02:51.9]} 7. Be3 {[%clk 0:03:00.7]} 7... Bd6 {[%clk 0:02:47.5]} 8. Nbd2 {[%clk
0:02:57.1]} 8... O-O {[%clk 0:02:46.8]} 9. Nc4 {[%clk 0:02:57.1]} 9... Re8
{[%clk 0:02:46.1]} 10. c3 {[%clk 0:02:56.2]} 10... Bf8 {[%clk 0:02:40.7]} 11.
Qc2 {[%clk 0:02:55.9]} 11... f6 {[%clk 0:02:40.1]} 12. O-O {[%clk 0:02:54.5]}
12... Nc5 {[%clk 0:02:37.5]} 13. Rad1 {[%clk 0:02:53.9]} 13... Bg4 {[%clk
0:02:30.3]} 14. Qe2 {[%clk 0:02:50.7]} 14... Ne6 {[%clk 0:02:19.5]} 15. h3
{[%clk 0:02:50.6]} 15... Bh5 {[%clk 0:02:19]} 16. d4 {[%clk 0:02:47.6]} 16...
exd4 {[%clk 0:02:17.5]} 17. cxd4 {[%clk 0:02:48.5]} 17... Qe7 {[%clk 0:02:05.6]}
18. Ncd2 {[%clk 0:02:41.3]} 18... Rad8 {[%clk 0:02:03.4]} 19. Qc4 {[%clk
0:02:38.6]} 19... Bf7 {[%clk 0:01:56.3]} 20. Qc3 {[%clk 0:02:35.3]} 20... Qb4
{[%clk 0:01:35.7]} 21. Rfe1 {[%clk 0:02:20.2]} 21... Qxc3 {[%clk 0:01:28.9]} 22.
bxc3 {[%clk 0:02:19.6]} 22... b6 {[%clk 0:01:29.4]} 23. c4 {[%clk 0:02:15.9]}
23... g6 {[%clk 0:01:16.5]} 24. d5 {[%clk 0:02:12.6]} 24... Nc5 {[%clk
0:01:06.4]} 25. Bd4 {[%clk 0:02:12.6]} 25... Be7 {[%clk 0:00:58.3]} 26. Nb3
{[%clk 0:02:09.1]} 26... Nd7 {[%clk 0:00:41]} 27. Bc3 {[%clk 0:01:37]} 27... c5
{[%clk 0:00:29.9]} 28. a4 {[%clk 0:01:30.4]} 28... a5 {[%clk 0:00:24.7]} 29.
Nbd2 {[%clk 0:01:13.3]} 29... Bd6 {[%clk 0:00:24.7]} 30. Nb1 {[%clk 0:01:11.4]}
30... Re7 {[%clk 0:00:23.4]} 31. Re2 {[%clk 0:01:04.7]} 31... Ne5 {[%clk
0:00:21]} 32. Nxe5 {[%clk 0:01:03.2]} 32... fxe5 {[%clk 0:00:16.7]} 33. Bd2
{[%clk 0:00:58.8]} 33... Rf8 {[%clk 0:00:14]} 34. Nc3 {[%clk 0:00:55]} 34... Be8
{[%clk 0:00:13.8]} 35. Bh6 {[%clk 0:00:52.8]} 35... Rff7 {[%clk 0:00:10.2]} 36.
Bg5 {[%clk 0:00:51.9]} 36... Rd7 {[%clk 0:00:10.2]} 37. Rd3 {[%clk 0:00:48.8]}
37... Bf8 {[%clk 0:00:09.8]} 38. g3 {[%clk 0:00:46.1]} 38... h6 {[%clk
0:00:09.5]} 39. Bd2 {[%clk 0:00:43.1]} 39... Kg7 {[%clk 0:00:09.4]} 40. Kg2
{[%clk 0:00:43.3]} 40... Bd6 {[%clk 0:00:09.3]} 41. h4 {[%clk 0:00:43.2]} 41...
Rf8 {[%clk 0:00:09.1]} 42. f4 {[%clk 0:00:41.3]} 42... Rdf7 {[%clk 0:00:09.4]}
43. fxe5 {[%clk 0:00:30.8]} 43... Bxe5 {[%clk 0:00:09.4]} 44. Nb5 {[%clk
0:00:29.7]} 44... Bxb5 {[%clk 0:00:06.3]} 45. cxb5 {[%clk 0:00:23.9]} 45... Bd4
{[%clk 0:00:06.8]} 46. Bc3 {[%clk 0:00:22.8]} 46... Rf2+ {[%clk 0:00:04.8]} 47.
Rxf2 {[%clk 0:00:22.2]} 47... Rxf2+ {[%clk 0:00:05.7]} 48. Kh3 {[%clk
0:00:20.5]} 48... Bxc3 {[%clk 0:00:04.7]} 49. Rxc3 {[%clk 0:00:21.4]} 49... Re2
{[%clk 0:00:04.6]} 50. Rc4 {[%clk 0:00:21.2]} 50... Kf6 {[%clk 0:00:04.7]} 51.
Kg4 {[%clk 0:00:18]} 51... Ke5 {[%clk 0:00:04.1]} 52. Kf3 {[%clk 0:00:18]} 52...
Ra2 {[%clk 0:00:03.7]} 53. g4 {[%clk 0:00:13.9]} 53... Ra3+ {[%clk 0:00:03.3]}
54. Kf2 {[%clk 0:00:14]} 54... Rh3 {[%clk 0:00:02.1]} 55. Kg2 {[%clk 0:00:10.8]}
55... Rxh4 {[%clk 0:00:01.9]} 56. Kg3 {[%clk 0:00:10.9]} 56... Rh1 {[%clk
0:00:02.3]} 57. Rc2 {[%clk 0:00:10.6]} 57... Re1 {[%clk 0:00:02.2]} 58. Rf2
{[%clk 0:00:09]} 58... Rxe4 {[%clk 0:00:02.2]} 59. Rf7 {[%clk 0:00:09.2]} 59...
Rxa4 {[%clk 0:00:01.8]} 60. Rxc7 {[%clk 0:00:08.8]} 60... Kxd5 {[%clk
0:00:02.3]} 61. Rc6 {[%clk 0:00:08.3]} 61... Rb4 {[%clk 0:00:02.7]} 62. Rxb6
{[%clk 0:00:08.4]} 62... a4 {[%clk 0:00:03.6]} 63. Rxg6 {[%clk 0:00:08.2]} 63...
Rxb5 {[%clk 0:00:03.3]} 64. Ra6 {[%clk 0:00:08.3]} 64... Rb4 {[%clk 0:00:02.8]}
65. Rxh6 {[%clk 0:00:08.4]} 65... Kc4 {[%clk 0:00:03.3]} 66. g5 {[%clk
0:00:08.2]} 66... Kb3 {[%clk 0:00:03.3]} 67. g6 {[%clk 0:00:08.1]} 67... Rb8
{[%clk 0:00:03.6]} 68. Kf4 {[%clk 0:00:05.8]} 68... Rg8 {[%clk 0:00:04]} 69. Kf5
{[%clk 0:00:05.6]} 69... c4 {[%clk 0:00:04.2]} 70. Rh7 {[%clk 0:00:05.7]} 70...
c3 {[%clk 0:00:04.6]} 71. Rb7+ {[%clk 0:00:05.7]} 71... Kc2 {[%clk 0:00:04.8]}
72. Rc7 {[%clk 0:00:05.4]} 72... a3 {[%clk 0:00:04.4]} 73. Ra7 {[%clk
0:00:03.8]} 73... Kb2 {[%clk 0:00:04.6]} 74. Rb7+ {[%clk 0:00:03.9]} 74... Kc1
{[%clk 0:00:04.8]} 75. Ra7 {[%clk 0:00:03.8]} 75... Kb2 {[%clk 0:00:04.9]} 76.
Rb7+ {[%clk 0:00:03.5]} 76... Kc2 {[%clk 0:00:04.9]} 77. Ra7 {[%clk 0:00:03.3]}
77... Kb2 {[%clk 0:00:03.3]} 1/2-1/2

[Event "*** SCC Grand Prix: Titled Tuesday Blitz"]
[Site "Chess.com"]
[Date "2020.06.23"]
[Round "6"]
[White "Lector118"]
[Black "GoltsevDmitry2000"]
[Result "1-0"]
[WhiteElo "2483"]
[BlackElo "2609"]
[TimeControl "180+1"]
[EndTime "11:08:12 PDT"]
[Termination "Lector118 won by resignation"]

1. d4 {[%clk 0:03:00.9]} 1... Nf6 {[%clk 0:02:59.9]} 2. c4 {[%clk 0:03:00.6]}
2... e6 {[%clk 0:03:00.8]} 3. g3 {[%clk 0:03:00.2]} 3... Bb4+ {[%clk 0:03:01.1]}
4. Bd2 {[%clk 0:02:59.4]} 4... Qe7 {[%clk 0:03:01.2]} 5. Bg2 {[%clk 0:02:55.6]}
5... Nc6 {[%clk 0:03:00.8]} 6. e3 {[%clk 0:02:55]} 6... O-O {[%clk 0:02:58.6]}
7. Ne2 {[%clk 0:02:54]} 7... Bxd2+ {[%clk 0:02:58.5]} 8. Qxd2 {[%clk 0:02:53.8]}
8... d6 {[%clk 0:02:59.4]} 9. Nbc3 {[%clk 0:02:52.9]} 9... a5 {[%clk 0:02:59.1]}
10. h3 {[%clk 0:02:51.8]} 10... e5 {[%clk 0:02:58.8]} 11. O-O {[%clk 0:02:49.8]}
11... Bf5 {[%clk 0:02:56.8]} 12. g4 {[%clk 0:02:47.2]} 12... Bg6 {[%clk
0:02:56.5]} 13. Ng3 {[%clk 0:02:46.3]} 13... Nd7 {[%clk 0:02:48.9]} 14. Nd5
{[%clk 0:02:25.9]} 14... Qd8 {[%clk 0:02:47.8]} 15. Rae1 {[%clk 0:02:24.8]}
15... f6 {[%clk 0:02:45.2]} 16. f4 {[%clk 0:02:23.3]} 16... Bf7 {[%clk 0:02:43]}
17. f5 {[%clk 0:02:20.8]} 17... Re8 {[%clk 0:02:38.1]} 18. h4 {[%clk 0:02:12.4]}
18... h6 {[%clk 0:02:32]} 19. Kh1 {[%clk 0:01:51.5]} 19... Rb8 {[%clk
0:02:28.9]} 20. Be4 {[%clk 0:01:50]} 20... b5 {[%clk 0:02:07.3]} 21. cxb5 {[%clk
0:01:40.1]} 21... Rxb5 {[%clk 0:02:01.8]} 22. Nc3 {[%clk 0:01:39.8]} 22... Rb6
{[%clk 0:01:59]} 23. Na4 {[%clk 0:01:33.4]} 23... Ra6 {[%clk 0:01:54.7]} 24. Rc1
{[%clk 0:01:10.4]} 24... d5 {[%clk 0:01:39.8]} 25. dxe5 {[%clk 0:00:59.8]} 25...
Ndxe5 {[%clk 0:01:34.2]} 26. Nc5 {[%clk 0:00:54.5]} 26... Rb6 {[%clk 0:01:26.6]}
27. Bg2 {[%clk 0:00:48.5]} 27... Nxg4 {[%clk 0:01:23.3]} 28. Ne6 {[%clk
0:00:49.1]} 28... Bxe6 {[%clk 0:01:18.3]} 29. fxe6 {[%clk 0:00:50]} 29... Ne7
{[%clk 0:01:11.6]} 30. Bh3 {[%clk 0:00:38.1]} 30... Qd6 {[%clk 0:00:55.7]} 31.
Nh5 {[%clk 0:00:33.7]} 31... Qe5 {[%clk 0:00:35.7]} 32. Rg1 {[%clk 0:00:31.9]}
32... Rxb2 {[%clk 0:00:34.7]} 33. Rc2 {[%clk 0:00:23.6]} 33... Qe4+ {[%clk
0:00:33.8]} 34. Rg2 {[%clk 0:00:20.6]} 34... Rb1+ {[%clk 0:00:17]} 35. Rc1
{[%clk 0:00:19.9]} 35... Rxc1+ {[%clk 0:00:17.1]} 36. Qxc1 {[%clk 0:00:20.8]}
36... Nf2+ {[%clk 0:00:17.3]} 37. Kh2 {[%clk 0:00:17.7]} 37... Qe5+ {[%clk
0:00:13.9]} 38. Ng3 {[%clk 0:00:18.2]} 38... Nxh3 {[%clk 0:00:12.9]} 39. Kxh3
{[%clk 0:00:18.4]} 39... Qxe6+ {[%clk 0:00:13.3]} 40. Kh2 {[%clk 0:00:19.1]}
40... Nf5 {[%clk 0:00:13.6]} 41. Qxc7 {[%clk 0:00:16.9]} 41... Nxe3 {[%clk
0:00:12.9]} 42. Nh5 {[%clk 0:00:14.8]} 42... Ng4+ {[%clk 0:00:06.7]} 43. Kh3
{[%clk 0:00:06.9]} 43... Re7 {[%clk 0:00:03.8]} 44. Qb8+ {[%clk 0:00:06.2]}
44... Re8 {[%clk 0:00:03.8]} 45. Qc7 {[%clk 0:00:06]} 45... Re7 {[%clk
0:00:04.1]} 46. Qb8+ {[%clk 0:00:05.5]} 46... Kh7 {[%clk 0:00:04.4]} 47. Rxg4
{[%clk 0:00:05.6]} 47... Qf5 {[%clk 0:00:04.3]} 48. Ng3 {[%clk 0:00:05.6]} 48...
Qf3 {[%clk 0:00:04]} 49. Qf4 {[%clk 0:00:06.1]} 49... Qd3 {[%clk 0:00:02.6]} 50.
Qd4 {[%clk 0:00:03.8]} 50... Qc2 {[%clk 0:00:02.8]} 51. Qa4 {[%clk 0:00:03]}
51... Qd2 {[%clk 0:00:01.8]} 52. Qf4 {[%clk 0:00:03.1]} 52... Qd3 {[%clk
0:00:01.8]} 53. Qf5+ {[%clk 0:00:02.7]} 53... Qxf5 {[%clk 0:00:02]} 54. Nxf5
{[%clk 0:00:03.6]} 54... Rd7 {[%clk 0:00:02.4]} 55. Nd4 {[%clk 0:00:03.1]} 55...
g6 {[%clk 0:00:02.5]} 56. h5 {[%clk 0:00:03.4]} 56... g5 {[%clk 0:00:02.2]} 57.
Nf5 {[%clk 0:00:02.5]} 57... Rd8 {[%clk 0:00:01.9]} 58. Rd4 {[%clk 0:00:03.2]}
58... Re8 {[%clk 0:00:02]} 59. Kg4 {[%clk 0:00:03.6]} 59... Re2 {[%clk
0:00:02.9]} 60. Rxd5 {[%clk 0:00:03.8]} 60... Re4+ {[%clk 0:00:03.4]} 61. Kg3
{[%clk 0:00:03.5]} 61... Ra4 {[%clk 0:00:04.3]} 62. Ne3 {[%clk 0:00:03.5]} 62...
Ra3 {[%clk 0:00:04.4]} 63. Kf3 {[%clk 0:00:03.7]} 63... Rxa2 {[%clk 0:00:04.7]}
64. Rd7+ {[%clk 0:00:04]} 64... Kg8 {[%clk 0:00:04.9]} 65. Ng4 {[%clk
0:00:04.6]} 65... Ra3+ {[%clk 0:00:04.3]} 66. Ke4 {[%clk 0:00:05.2]} 66... Ra4+
{[%clk 0:00:04.6]} 67. Kf5 {[%clk 0:00:05.9]} 67... Rf4+ {[%clk 0:00:04.9]} 68.
Kg6 {[%clk 0:00:06.5]} 68... Kf8 {[%clk 0:00:05.2]} 69. Nxf6 {[%clk 0:00:07.2]}
69... Rxf6+ {[%clk 0:00:03.4]} 70. Kxf6 {[%clk 0:00:08.1]} 70... Ke8 {[%clk
0:00:03.6]} 71. Ra7 {[%clk 0:00:08.7]} 71... g4 {[%clk 0:00:03.6]} 72. Rxa5
{[%clk 0:00:08.7]} 72... g3 {[%clk 0:00:04.5]} 73. Ra1 {[%clk 0:00:09.6]} 73...
g2 {[%clk 0:00:05.4]} 74. Rg1 {[%clk 0:00:10.2]} 1-0

[Event "*** SCC Grand Prix: Titled Tuesday Blitz"]
[Site "Chess.com"]
[Date "2020.06.23"]
[Round "6"]
[White "TokChess"]
[Black "Yoshikrov"]
[Result "1-0"]
[WhiteElo "2373"]
[BlackElo "2023"]
[TimeControl "180+1"]
[EndTime "11:08:13 PDT"]
[Termination "TokChess won on time"]

1. Nf3 {[%clk 0:03:00.9]} 1... d5 {[%clk 0:02:58.8]} 2. c4 {[%clk 0:03:00.8]}
2... Nf6 {[%clk 0:02:54.4]} 3. cxd5 {[%clk 0:02:59.5]} 3... Nxd5 {[%clk
0:02:53.9]} 4. Nc3 {[%clk 0:03:00.1]} 4... Nxc3 {[%clk 0:02:53.3]} 5. bxc3
{[%clk 0:03:00.4]} 5... g6 {[%clk 0:02:53.8]} 6. g3 {[%clk 0:03:00.7]} 6... Bg7
{[%clk 0:02:54.2]} 7. Bg2 {[%clk 0:03:01.2]} 7... O-O {[%clk 0:02:54.5]} 8. O-O
{[%clk 0:03:01.4]} 8... c5 {[%clk 0:02:54.7]} 9. Rb1 {[%clk 0:02:59.1]} 9... Nc6
{[%clk 0:02:53.4]} 10. Qc2 {[%clk 0:02:58.5]} 10... Qc7 {[%clk 0:02:34.7]} 11.
d3 {[%clk 0:02:55.7]} 11... Bd7 {[%clk 0:02:24.4]} 12. c4 {[%clk 0:02:54.5]}
12... Rac8 {[%clk 0:02:16.6]} 13. Bb2 {[%clk 0:02:54]} 13... b6 {[%clk
0:02:12.6]} 14. Bxg7 {[%clk 0:02:51]} 14... Kxg7 {[%clk 0:02:13.5]} 15. Qc3+
{[%clk 0:02:50.9]} 15... Kg8 {[%clk 0:02:12.6]} 16. h4 {[%clk 0:02:48.4]} 16...
h5 {[%clk 0:02:10.3]} 17. Rb2 {[%clk 0:02:43.5]} 17... Qd6 {[%clk 0:02:04.1]}
18. Ng5 {[%clk 0:02:38.5]} 18... Qf6 {[%clk 0:01:56.2]} 19. Qxf6 {[%clk
0:02:36.2]} 19... exf6 {[%clk 0:01:55.8]} 20. Ne4 {[%clk 0:02:37.1]} 20... Kg7
{[%clk 0:01:53.3]} 21. Nd6 {[%clk 0:02:35.6]} 21... Rcd8 {[%clk 0:01:50.6]} 22.
Nb5 {[%clk 0:02:28.6]} 22... Ra8 {[%clk 0:01:41.5]} 23. Ra1 {[%clk 0:02:26.1]}
23... Rfe8 {[%clk 0:01:32.8]} 24. Kf1 {[%clk 0:02:26]} 24... Rec8 {[%clk
0:01:25.5]} 25. Nc3 {[%clk 0:02:20.3]} 25... Rab8 {[%clk 0:01:21.9]} 26. Nd5
{[%clk 0:02:18.1]} 26... Nd4 {[%clk 0:01:17.5]} 27. e3 {[%clk 0:02:15.6]} 27...
Ne6 {[%clk 0:01:12.3]} 28. a4 {[%clk 0:02:12.1]} 28... Re8 {[%clk 0:00:59.2]}
29. Bf3 {[%clk 0:02:08.7]} 29... Bc6 {[%clk 0:00:52.3]} 30. Kg2 {[%clk
0:01:59.8]} 30... Bxd5 {[%clk 0:00:52.6]} 31. Bxd5 {[%clk 0:01:58.2]} 31... Nc7
{[%clk 0:00:52.7]} 32. Bf3 {[%clk 0:01:51.5]} 32... Na6 {[%clk 0:00:52.9]} 33.
a5 {[%clk 0:01:46.2]} 33... Nb4 {[%clk 0:00:53]} 34. axb6 {[%clk 0:01:46.1]}
34... axb6 {[%clk 0:00:53.4]} 35. Rb3 {[%clk 0:01:40.2]} 35... Red8 {[%clk
0:00:52.2]} 36. Raa3 {[%clk 0:01:29.1]} 36... Rd6 {[%clk 0:00:49]} 37. Kf1
{[%clk 0:01:26.8]} 37... Rbd8 {[%clk 0:00:49]} 38. Ke2 {[%clk 0:01:23.1]} 38...
f5 {[%clk 0:00:47.5]} 39. Rxb4 {[%clk 0:01:16.6]} 39... cxb4 {[%clk 0:00:46.8]}
40. Rb3 {[%clk 0:01:17.2]} 40... Kf6 {[%clk 0:00:44.7]} 41. Bd5 {[%clk
0:01:15.7]} 41... b5 {[%clk 0:00:36.7]} 42. Rxb4 {[%clk 0:01:12.4]} 42... bxc4
{[%clk 0:00:37]} 43. Bxc4 {[%clk 0:01:10]} 43... Ra8 {[%clk 0:00:35]} 44. Rb7
{[%clk 0:01:08.5]} 44... Re6 {[%clk 0:00:25.1]} 45. Bxe6 {[%clk 0:01:04.9]}
45... fxe6 {[%clk 0:00:26]} 46. e4 {[%clk 0:01:00.2]} 46... Ra4 {[%clk
0:00:21.9]} 47. exf5 {[%clk 0:00:51.8]} 47... exf5 {[%clk 0:00:22.3]} 48. Rb6+
{[%clk 0:00:50.1]} 48... Kf7 {[%clk 0:00:22.7]} 49. Ke3 {[%clk 0:00:50.3]} 49...
Kg7 {[%clk 0:00:21.8]} 50. Rd6 {[%clk 0:00:49.3]} 50... Kf7 {[%clk 0:00:21.9]}
51. f3 {[%clk 0:00:46.5]} 51... Kg7 {[%clk 0:00:21.2]} 52. d4 {[%clk 0:00:45]}
52... Kf7 {[%clk 0:00:21.4]} 53. Kf4 {[%clk 0:00:44.6]} 53... Rb4 {[%clk
0:00:17.6]} 54. Kg5 {[%clk 0:00:43.1]} 54... Rb3 {[%clk 0:00:16.8]} 55. Rxg6
{[%clk 0:00:35]} 55... Rxf3 {[%clk 0:00:16.1]} 56. Rf6+ {[%clk 0:00:35.5]} 56...
Ke7 {[%clk 0:00:16.2]} 57. Rxf5 {[%clk 0:00:35.7]} 57... Rxg3+ {[%clk
0:00:16.6]} 58. Kxh5 {[%clk 0:00:35.9]} 58... Rd3 {[%clk 0:00:16.8]} 59. d5
{[%clk 0:00:35.8]} 59... Rg3 {[%clk 0:00:16.3]} 60. Rg5 {[%clk 0:00:34.9]} 60...
Rh3 {[%clk 0:00:14.6]} 61. Kg4 {[%clk 0:00:34.8]} 61... Rh1 {[%clk 0:00:14.7]}
62. h5 {[%clk 0:00:33.5]} 62... Kd6 {[%clk 0:00:14.9]} 63. Kf5 {[%clk
0:00:31.5]} 63... Kxd5 {[%clk 0:00:12.3]} 64. Kg6+ {[%clk 0:00:31.7]} 64... Ke6
{[%clk 0:00:12.6]} 65. Rg2 {[%clk 0:00:28.8]} 65... Ra1 {[%clk 0:00:08.2]} 66.
Re2+ {[%clk 0:00:27.3]} 66... Kd5 {[%clk 0:00:07.3]} 67. h6 {[%clk 0:00:27.6]}
67... Ra6+ {[%clk 0:00:07.4]} 68. Kg5 {[%clk 0:00:16.8]} 68... Kd4 {[%clk
0:00:06]} 69. h7 {[%clk 0:00:15.3]} 69... Ra5+ {[%clk 0:00:06]} 70. Kg6 {[%clk
0:00:13.8]} 70... Ra6+ {[%clk 0:00:06.3]} 71. Kf7 {[%clk 0:00:13]} 71... Ra8
{[%clk 0:00:04.7]} 72. Re8 {[%clk 0:00:12.5]} 72... Rxe8 {[%clk 0:00:02.5]} 73.
Kxe8 {[%clk 0:00:12.3]} 1-0

[Event "*** SCC Grand Prix: Titled Tuesday Blitz"]
[Site "Chess.com"]
[Date "2020.06.23"]
[Round "6"]
[White "WinstonSilvakov"]
[Black "RusPakhom"]
[Result "0-1"]
[WhiteElo "2142"]
[BlackElo "2349"]
[TimeControl "180+1"]
[EndTime "11:08:16 PDT"]
[Termination "RusPakhom won on time"]

1. d4 {[%clk 0:03:00.9]} 1... d6 {[%clk 0:02:58.6]} 2. e4 {[%clk 0:02:58.9]}
2... g6 {[%clk 0:02:57.2]} 3. Nc3 {[%clk 0:02:59.4]} 3... Bg7 {[%clk 0:02:57.7]}
4. Bg5 {[%clk 0:02:59.9]} 4... Nd7 {[%clk 0:02:57.6]} 5. Bc4 {[%clk 0:02:57.7]}
5... a6 {[%clk 0:02:38.6]} 6. Nf3 {[%clk 0:02:57]} 6... b5 {[%clk 0:02:37.6]} 7.
Bd5 {[%clk 0:02:53.6]} 7... Rb8 {[%clk 0:02:36.4]} 8. Be3 {[%clk 0:02:53.3]}
8... e6 {[%clk 0:02:35]} 9. Bb3 {[%clk 0:02:52.6]} 9... c5 {[%clk 0:02:32.8]}
10. dxc5 {[%clk 0:02:43.2]} 10... dxc5 {[%clk 0:02:33.7]} 11. Qd6 {[%clk
0:02:39.8]} 11... c4 {[%clk 0:02:15.6]} 12. O-O-O {[%clk 0:02:16.1]} 12... cxb3
{[%clk 0:02:14]} 13. axb3 {[%clk 0:02:09.4]} 13... Ngf6 {[%clk 0:01:03.8]} 14.
Ne5 {[%clk 0:01:35.7]} 14... Nxe4 {[%clk 0:00:38.6]} 15. Qxb8 {[%clk 0:01:10.5]}
15... Nxb8 {[%clk 0:00:36.1]} 16. Rxd8+ {[%clk 0:01:07.7]} 16... Kxd8 {[%clk
0:00:36.3]} 17. Nxf7+ {[%clk 0:01:08.6]} 17... Ke7 {[%clk 0:00:36.7]} 18. Nxh8
{[%clk 0:01:08.1]} 18... Nxc3 {[%clk 0:00:37]} 19. Nxg6+ {[%clk 0:01:04.4]}
19... hxg6 {[%clk 0:00:36.4]} 20. bxc3 {[%clk 0:01:05.3]} 20... Bxc3 {[%clk
0:00:36]} 21. g4 {[%clk 0:01:01.8]} 21... Bb7 {[%clk 0:00:34.9]} 22. Rg1 {[%clk
0:01:00.7]} 22... Nd7 {[%clk 0:00:33.2]} 23. h4 {[%clk 0:00:59.3]} 23... Ne5
{[%clk 0:00:27]} 24. h5 {[%clk 0:00:52.6]} 24... Bf3 {[%clk 0:00:18.8]} 25. h6
{[%clk 0:00:31.2]} 25... Bxg4 {[%clk 0:00:14.6]} 26. h7 {[%clk 0:00:28.8]} 26...
Bf5 {[%clk 0:00:09.6]} 27. Kb1 {[%clk 0:00:22.2]} 27... Nf7 {[%clk 0:00:08.3]}
28. Bh6 {[%clk 0:00:14.9]} 28... Nh8 {[%clk 0:00:08.2]} 29. Bg5+ {[%clk
0:00:13.1]} 29... Kf7 {[%clk 0:00:08.5]} 30. Be3 {[%clk 0:00:13.5]} 30... Kg7
{[%clk 0:00:08.7]} 31. Rh1 {[%clk 0:00:14]} 31... g5 {[%clk 0:00:09.1]} 32. Kc1
{[%clk 0:00:13.5]} 32... Bxh7 {[%clk 0:00:08.9]} 33. Bxg5 {[%clk 0:00:14]} 33...
Bf5 {[%clk 0:00:09.1]} 34. Bh6+ {[%clk 0:00:14]} 34... Kf7 {[%clk 0:00:08.6]}
35. Be3 {[%clk 0:00:14.2]} 35... Ng6 {[%clk 0:00:09]} 36. Bd2 {[%clk 0:00:13.8]}
36... Bxd2+ {[%clk 0:00:08.5]} 37. Kxd2 {[%clk 0:00:14.7]} 37... Ne5 {[%clk
0:00:09.1]} 38. Ke3 {[%clk 0:00:14.6]} 38... Kf6 {[%clk 0:00:09.4]} 39. Kf4
{[%clk 0:00:14.3]} 39... Ng6+ {[%clk 0:00:09]} 40. Ke3 {[%clk 0:00:14.3]} 40...
e5 {[%clk 0:00:08.1]} 41. f3 {[%clk 0:00:14.5]} 41... Ne7 {[%clk 0:00:08.4]} 42.
Ra1 {[%clk 0:00:14.4]} 42... Nd5+ {[%clk 0:00:08.7]} 43. Kd2 {[%clk 0:00:13]}
43... Bc8 {[%clk 0:00:08.6]} 44. Rh1 {[%clk 0:00:12.2]} 44... Bb7 {[%clk
0:00:08.8]} 45. Rh7 {[%clk 0:00:11.1]} 45... Ne7 {[%clk 0:00:08.5]} 46. Rh6+
{[%clk 0:00:09.1]} 46... Ng6 {[%clk 0:00:07.9]} 47. Ke3 {[%clk 0:00:08.8]} 47...
Bd5 {[%clk 0:00:07.6]} 48. Rh7 {[%clk 0:00:07.6]} 48... Ne7 {[%clk 0:00:07.6]}
49. Rh6+ {[%clk 0:00:05.2]} 49... Ng6 {[%clk 0:00:08]} 50. Rh7 {[%clk 0:00:05]}
50... Bf7 {[%clk 0:00:08.2]} 51. Rh6 {[%clk 0:00:05]} 51... Kf5 {[%clk
0:00:07.9]} 52. Rh1 {[%clk 0:00:05.4]} 52... Nf4 {[%clk 0:00:07.9]} 53. Rf1
{[%clk 0:00:05.3]} 53... Bh5 {[%clk 0:00:06.3]} 54. Ra1 {[%clk 0:00:05.1]} 54...
Nd5+ {[%clk 0:00:06.6]} 55. Kf2 {[%clk 0:00:03.6]} 55... Nc7 {[%clk 0:00:07]}
56. Ra5 {[%clk 0:00:03.6]} 56... Kf4 {[%clk 0:00:06.8]} 57. c4 {[%clk
0:00:02.3]} 57... bxc4 {[%clk 0:00:06.4]} 58. bxc4 {[%clk 0:00:03.2]} 58... Bxf3
{[%clk 0:00:06.5]} 59. Rc5 {[%clk 0:00:03.4]} 59... Ne6 {[%clk 0:00:06.6]} 60.
Rc8 {[%clk 0:00:02.7]} 60... Nd4 {[%clk 0:00:06.2]} 61. Rf8+ {[%clk 0:00:02.5]}
61... Nf5 {[%clk 0:00:06.6]} 62. Ra8 {[%clk 0:00:01.9]} 62... e4 {[%clk
0:00:06.9]} 63. Ra7 {[%clk 0:00:01.9]} 63... e3+ {[%clk 0:00:07.4]} 64. Ke1
{[%clk 0:00:02.4]} 64... Nd4 {[%clk 0:00:07.7]} 65. Rf7+ {[%clk 0:00:02.5]}
65... Ke4 {[%clk 0:00:07.9]} 66. Re7+ {[%clk 0:00:02.8]} 66... Kd3 {[%clk
0:00:08.4]} 67. Ra7 {[%clk 0:00:03]} 67... Nc2+ {[%clk 0:00:08.5]} 0-1